Workbook

Sheet 2021
A1: 2021年度新能源汽车推广应用补助资金清算审核车辆信息表
A2: 地区 | B2: 序号 | C2: 车辆生产企业 | D2: 车辆型号 | E2: 申报推广数 （辆） | F2: 申请补助标准 （万元） | G2: 申请清算资金 （万元） | H2: 核定推广数 （辆） | I2: 核定补助标准 （万元） | J2: 应清算补助资金 （万元） | K2: 按整车企业取整后补助资金（万元） | L2: 核减原因 | M2: 此前待扣回预拨资金（万元） | N2: 此次扣回预拨资金（万元） | O2: 扣回相应预拨资金后剩余资金（万元）
A3: 总计 | E3: =SUM(E4:E3262)/3 -> 180326 | G3: =SUM(G4:G3262)/3 -> 279271.9374 | H3: =SUM(H4:H3262)/3 -> 168080 | J3: =SUM(J4:J3262)/3 -> 260180.8384 | K3: =SUM(K4:K3260)/2 -> 260184 | M3: =SUM(M4:M3260)/2 -> 557864 | N3: =SUM(N4:N3260)/2 -> 131204 | O3: =SUM(O4:O3260)/2 -> 128980
A4: 北京市 | B4: 合计 | E4: =SUM(E5:E179)/2 -> 9204 | G4: =SUM(G5:G179)/2 -> 13787.3574 | H4: =SUM(H5:H179)/2 -> 8163 | J4: =SUM(J5:J179)/2 -> 12010.3576 | K4: =SUM(K5:K127) -> 12010 | M4: =SUM(M5:M127) -> 5773 | N4: =SUM(N5:N127) -> 3032 | O4: =SUM(O5:O127) -> 8978
B5: 1 | C5: 北京华林特装车有限公司 | D5: 小计 | E5: =SUM(E6:E15) -> 69 | G5: =SUM(G6:G15) -> 273.9834 | H5: =SUM(H6:H15) -> 27 | J5: =SUM(J6:J15) -> 115.0827 | K5: =ROUND(J5,0) -> 115 | M5: 0 | N5: =M5 -> 0 | O5: =K5-N5 -> 115
D6: HLT5040CTYBYEV | E6: 1 | F6: 2.0081 | G6: =E6*F6 -> 2.0081 | H6: 1 | I6: 2.0081 | J6: =H6*I6 -> 2.0081
D7: HLT5042ZLJEV | E7: 17 | F7: 2.0081 | G7: =E7*F7 -> 34.1377 | H7: 2 | I7: 2.0081 | J7: =H7*I7 -> 4.0162 | L7: 核减15辆，原因为：未按有关要求上传车辆运行数据
D8: HLT5071XTYEV | E8: 9 | F8: 3.3264 | G8: 29.9376 | H8: 6 | I8: 3.3264 | J8: 19.9584 | L8: 核减3辆，原因为：未按有关要求上传车辆运行数据
D9: HLT5120TCABYEV | E9: 3 | F9: 4.95 | G9: 14.85 | H9: 1 | I9: 4.95 | J9: 4.95 | L9: 核减2辆，原因为：未按有关要求上传车辆运行数据
D10: HLT5121ZYSBYEV | E10: 2 | F10: 4.95 | G10: 9.9 | H10: 1 | I10: 4.95 | J10: 4.95 | L10: 核减1辆，原因为：未按有关要求上传车辆运行数据
D11: HLT5180TCAEV | E11: 3 | F11: 4.95 | G11: 14.85 | H11: 1 | I11: 4.95 | J11: 4.95 | L11: 核减2辆，原因为：未按有关要求上传车辆运行数据
D12: HLT5180ZXXEV | E12: 5 | F12: 4.95 | G12: 24.75 | H12: 0 | I12: 0 | J12: 0 | L12: 核减5辆，原因为：未按有关要求上传车辆运行数据
D13: HLT5181TXSEV | E13: 2 | F13: 4.95 | G13: 9.9 | H13: 2 | I13: 4.95 | J13: 9.9
D14: HLT5181ZYSEV | E14: 25 | F14: 4.95 | G14: 123.75 | H14: 11 | I14: 4.95 | J14: 54.45 | L14: 核减14辆，原因为：未按有关要求上传车辆运行数据
D15: HLT5321ZXXEV | E15: 2 | F15: 4.95 | G15: 9.9 | H15: 2 | I15: 4.95 | J15: 9.9
B16: 2 | C16: 北京环卫集团环卫装备有限公司 | D16: 小计 | E16: =SUM(E17:E21) -> 31 | G16: =SUM(G17:G21) -> 133.4405 | H16: =SUM(H17:H21) -> 4 | J16: =SUM(J17:J21) -> 16.8581 | K16: =ROUND(J16,0) -> 17 | M16: 0 | N16: =M16 -> 0 | O16: =K16-N16 -> 17
D17: BQJ5040GXEEV | E17: 1 | F17: 2.1054 | G17: =E17*F17 -> 2.1054 | H17: 0 | I17: 0 | J17: =H17*I17 -> 0 | L17: 核减1辆，原因为：未按有关要求上传车辆运行数据
D18: BQJ5040TSLEV | E18: 5 | F18: 2.1054 | G18: =E18*F18 -> 10.527 | H18: 0 | I18: 0 | J18: =H18*I18 -> 0 | L18: 核减5辆，原因为：未按有关要求上传车辆运行数据
D19: BQJ5040TYHBYDEV | E19: 1 | F19: 2.0081 | G19: =E19*F19 -> 2.0081 | H19: 1 | I19: 2.0081 | J19: =H19*I19 -> 2.0081
D20: BQJ5100ZLJSHEV | E20: 12 | F20: 4.95 | G20: =E20*F20 -> 59.4 | H20: 0 | I20: 0 | J20: =H20*I20 -> 0 | L20: 核减12辆，原因为：未按有关要求上传车辆运行数据
D21: BQJ5180TXSBYDEV | E21: 12 | F21: 4.95 | G21: =E21*F21 -> 59.4 | H21: 3 | I21: 4.95 | J21: =H21*I21 -> 14.85 | L21: 核减9辆，原因为：未按有关要求上传车辆运行数据
B22: 3 | C22: 北京汽车股份有限公司 | D22: 小计 | E22: =SUM(E23:E61) -> 6547 | G22: =SUM(G23:G61) -> 8061.5097 | H22: =SUM(H23:H61) -> 6533 | J22: =SUM(J23:J61) -> 8044.1784 | K22: =ROUND(J22,0) -> 8044 | M22: 0 | N22: =M22 -> 0 | O22: =K22-N22 -> 8044
D23: BJ7000C5D2-BEV | E23: 3 | F23: 1.134 | G23: =E23*F23 -> 3.402 | H23: 3 | I23: 1.134 | J23: =H23*I23 -> 3.402
D24: BJ7000C5D3-BEV | E24: 350 | F24: 1.134 | G24: 396.9 | H24: 350 | I24: 1.134 | J24: 396.9
D25: BJ7000C5D3-BEV | E25: 3607 | F25: 1.4175 | G25: 5112.9225 | H25: 3604 | I25: 1.4175 | J25: 5108.67 | L25: 核减3辆，原因为：车辆注册登记信息有误
D26: BJ7000C5D3-BEV | E26: 3 | F26: 1.62 | G26: 4.86 | H26: 3 | I26: 1.62 | J26: 4.86
D27: BJ7000C5D4-BEV | E27: 6 | F27: 1.134 | G27: 6.804 | H27: 6 | I27: 1.134 | J27: 6.804
D28: BJ7000C5D4-BEV | E28: 1 | F28: 1.4175 | G28: 1.4175 | H28: 1 | I28: 1.4175 | J28: 1.4175
D29: BJ7000C5D5-BEV | E29: 6 | F29: 1.134 | G29: 6.804 | H29: 6 | I29: 1.134 | J29: 6.804
D30: BJ7000C5D7-BEV | E30: 64 | F30: 1.26 | G30: 80.64 | H30: 61 | I30: 1.26 | J30: 76.86 | L30: 核减3辆，原因为：车辆注册登记信息有误
D31: BJ7000C5D7-BEV | E31: 31 | F31: 1.575 | G31: 48.825 | H31: 31 | I31: 1.575 | J31: 48.825
D32: BJ7000C5D7-BEV | E32: 4 | F32: 1.8 | G32: 7.2 | H32: 4 | I32: 1.8 | J32: 7.2
D33: BJ7000C5DA-BEV | E33: 3 | F33: 1.26 | G33: 3.78 | H33: 3 | I33: 1.26 | J33: 3.78
D34: BJ7000C5DA-BEV | E34: 13 | F34: 1.575 | G34: 20.475 | H34: 13 | I34: 1.575 | J34: 20.475
D35: BJ7000C5DB-BEV | E35: 24 | F35: 0.9072 | G35: 21.7728 | H35: 24 | I35: 0.9072 | J35: 21.7728
D36: BJ7000C5DE-BEV | E36: 1785 | F36: 0.9072 | G36: 1619.352 | H36: 1785 | I36: 0.9072 | J36: 1619.352
D37: BJ7000C5DF-BEV | E37: 3 | F37: 1.26 | G37: 3.78 | H37: 3 | I37: 1.26 | J37: 3.78
D38: BJ7000C5DF-BEV | E38: 1 | F38: 1.575 | G38: 1.575 | H38: 1 | I38: 1.575 | J38: 1.575
D39: BJ7000C5DH-BEV | E39: 1 | F39: 1.26 | G39: 1.26 | H39: 1 | I39: 1.26 | J39: 1.26
D40: BJ7001U5E2-BEV | E40: 31 | F40: 0.9072 | G40: 28.1232 | H40: 31 | I40: 0.9072 | J40: 28.1232
D41: BJ7001U5E2-BEV | E41: 5 | F41: 1.134 | G41: 5.67 | H41: 4 | I41: 1.134 | J41: 4.536 | L41: 核减1辆，原因为：不符合行驶里程数要求
D42: BJ7001U5E2-BEV | E42: 1 | F42: 1.296 | G42: 1.296 | H42: 0 | I42: 0 | J42: 0 | L42: 核减1辆，原因为：需进一步核实后予以清算
D43: BJ7003U3D2-BEV | E43: 295 | F43: 0.9072 | G43: 267.624 | H43: 291 | I43: 0.9072 | J43: 263.9952 | L43: 核减4辆，原因为：不符合行驶里程数要求,车辆注册登记信息有误
D44: BJ7003U3D2-BEV | E44: 31 | F44: 1.134 | G44: 35.154 | H44: 31 | I44: 1.134 | J44: 35.154
D45: BJ7003U3D2-BEV | E45: 6 | F45: 1.296 | G45: 7.776 | H45: 6 | I45: 1.296 | J45: 7.776
D46: BJ7003U3D3-BEV | E46: 26 | F46: 0.9072 | G46: 23.5872 | H46: 26 | I46: 0.9072 | J46: 23.5872
D47: BJ7000C5D2-BEV | E47: 1 | F47: 1.4175 | G47: 1.4175 | H47: 1 | I47: 1.4175 | J47: 1.4175
D48: BJ7000C5D2-BEV | E48: 5 | F48: 1.62 | G48: 8.1 | H48: 5 | I48: 1.62 | J48: 8.1
D49: BJ7000C5D3-BEV | E49: 26 | F49: 1.4175 | G49: 36.855 | H49: 26 | I49: 1.4175 | J49: 36.855
D50: BJ7000C5D3-BEV | E50: 38 | F50: 1.62 | G50: 61.56 | H50: 38 | I50: 1.62 | J50: 61.56
D51: BJ7000C5D3-BEV | E51: 2 | F51: 1.62 | G51: 3.24 | H51: 0 | I51: 0 | J51: 0 | L51: 核减2辆，原因为：车辆注册登记信息有误
D52: BJ7000C5D4-BEV | E52: 3 | F52: 1.62 | G52: 4.86 | H52: 3 | I52: 1.62 | J52: 4.86
D53: BJ7000C5D5-BEV | E53: 9 | F53: 1.62 | G53: 14.58 | H53: 9 | I53: 1.62 | J53: 14.58
D54: BJ7000C5D7-BEV | E54: 2 | F54: 1.575 | G54: 3.15 | H54: 2 | I54: 1.575 | J54: 3.15
D55: BJ7000C5D7-BEV | E55: 15 | F55: 1.8 | G55: 27 | H55: 15 | I55: 1.8 | J55: 27
D56: BJ7000C5DA-BEV | E56: 3 | F56: 1.575 | G56: 4.725 | H56: 3 | I56: 1.575 | J56: 4.725
D57: BJ7000C5DF-BEV | E57: 1 | F57: 1.8 | G57: 1.8 | H57: 1 | I57: 1.8 | J57: 1.8
D58: BJ7001U5E2-BEV | E58: 7 | F58: 1.296 | G58: 9.072 | H58: 7 | I58: 1.296 | J58: 9.072
D59: BJ7003U3D2-BEV | E59: 5 | F59: 1.134 | G59: 5.67 | H59: 5 | I59: 1.134 | J59: 5.67
D60: BJ7003U3D2-BEV | E60: 129 | F60: 1.296 | G60: 167.184 | H60: 129 | I60: 1.296 | J60: 167.184
D61: BJ7003U3D3-BEV | E61: 1 | F61: 1.296 | G61: 1.296 | H61: 1 | I61: 1.296 | J61: 1.296
B62: 4 | C62: 北京汽车制造厂有限公司 | D62: 小计 | E62: =SUM(E63:E67) -> 228 | G62: =SUM(G63:G67) -> 264.209 | H62: =SUM(H63:H67) -> 199 | J62: =SUM(J63:J67) -> 228.9886 | K62: =ROUND(J62,0) -> 229 | M62: 0 | N62: =M62 -> 0 | O62: =K62-N62 -> 229
D63: BAW5030XXY6Z541BEV | E63: 190 | F63: 1.0886 | G63: =E63*F63 -> 206.834 | H63: 176 | I63: 1.0886 | J63: =H63*I63 -> 191.5936 | L63: 核减14辆，原因为：不符合行驶里程数要求,车辆注册登记信息有误
D64: BAW7003UB53BEV | E64: 12 | F64: 1.26 | G64: =E64*F64 -> 15.12 | H64: 4 | I64: 1.26 | J64: =H64*I64 -> 5.04 | L64: 核减8辆，原因为：不符合行驶里程数要求
D65: BAW7003UB53BEV | E65: 1 | F65: 1.575 | G65: =E65*F65 -> 1.575 | H65: 1 | I65: 1.575 | J65: =H65*I65 -> 1.575
D66: BAW7003UB53BEV | E66: 17 | F66: 1.8 | G66: =E66*F66 -> 30.6 | H66: 15 | I66: 1.8 | J66: =H66*I66 -> 27 | L66: 核减2辆，原因为：车辆注册登记信息有误
D67: BAW7003UB54BEV | E67: 8 | F67: 1.26 | G67: =E67*F67 -> 10.08 | H67: 3 | I67: 1.26 | J67: =H67*I67 -> 3.78 | L67: 核减5辆，原因为：不符合行驶里程数要求
B68: 5 | C68: 北京现代汽车有限公司 | D68: 小计 | E68: =SUM(E69:E95) -> 580 | G68: =SUM(G69:G95) -> 556.2765 | H68: =SUM(H69:H95) -> 436 | J68: =SUM(J69:J95) -> 358.766 | K68: =ROUND(J68,0) -> 359 | M68: 0 | N68: =M68 -> 0 | O68: =K68-N68 -> 359
D69: BH7000BEVCAA | E69: 43 | F69: 1.134 | G69: =E69*F69 -> 48.762 | H69: 43 | I69: 1.134 | J69: =H69*I69 -> 48.762
D70: BH7000BEVCAA | E70: 47 | F70: 1.4175 | G70: 66.6225 | H70: 33 | I70: 1.4175 | J70: 46.7775 | L70: 核减14辆，原因为：重复申报,车辆注册登记信息有误,需进一步核实后予以清算
D71: BH7000BEVCAA | E71: 53 | F71: 1.62 | G71: 85.86 | H71: 7 | I71: 1.62 | J71: 11.34 | L71: 核减46辆，原因为：重复申报,车辆注册登记信息有误,需进一步核实后予以清算
D72: BH7000BEVDBA | E72: 11 | F72: 1.134 | G72: 12.474 | H72: 11 | I72: 1.134 | J72: 12.474
D73: BH7000BEVDBA | E73: 8 | F73: 1.4175 | G73: 11.34 | H73: 8 | I73: 1.4175 | J73: 11.34
D74: BH7000BEVDBA | E74: 5 | F74: 1.62 | G74: 8.1 | H74: 3 | I74: 1.62 | J74: 4.86 | L74: 核减2辆，原因为：车辆注册登记信息有误,需进一步核实后予以清算
D75: BH7000BEVSCA | E75: 15 | F75: 1.134 | G75: 17.01 | H75: 15 | I75: 1.134 | J75: 17.01
D76: BH7000BEVSCA | E76: 1 | F76: 1.4175 | G76: 1.4175 | H76: 0 | I76: 0 | J76: 0 | L76: 核减1辆，原因为：重复申报
D77: BH7000BEVSCA | E77: 58 | F77: 1.62 | G77: 93.96 | H77: 4 | I77: 1.62 | J77: 6.48 | L77: 核减54辆，原因为：重复申报,车辆注册登记信息有误,需进一步核实后予以清算
D78: BH7160PHEVCBAS | E78: 70 | F78: 0.476 | G78: 33.32 | H78: 70 | I78: 0.476 | J78: 33.32
D79: BH7160PHEVCBAS | E79: 141 | F79: 0.63 | G79: 88.83 | H79: 135 | I79: 0.63 | J79: 85.05 | L79: 核减6辆，原因为：重复申报,车辆注册登记信息有误,需进一步核实后予以清算
D80: BH7160PHEVCBAS | E80: 1 | F80: 0.68 | G80: 0.68 | H80: 0 | I80: 0 | J80: 0 | L80: 核减1辆，原因为：重复申报
D81: BH7200PHEVRAS | E81: 12 | F81: 0.238 | G81: 2.856 | H81: 11 | I81: 0.238 | J81: 2.618 | L81: 核减1辆，原因为：车辆注册登记信息有误
D82: BH7200PHEVRAS | E82: 15 | F82: 0.315 | G82: 4.725 | H82: 12 | I82: 0.315 | J82: 3.78 | L82: 核减3辆，原因为：重复申报,需进一步核实后予以清算
D83: BH7200PHEVRAS | E83: 10 | F83: 0.34 | G83: 3.4 | H83: 6 | I83: 0.34 | J83: 2.04 | L83: 核减4辆，原因为：重复申报,需进一步核实后予以清算
D84: BH7201PHEVRAS | E84: 9 | F84: 0.238 | G84: 2.142 | H84: 9 | I84: 0.238 | J84: 2.142
D85: BH7201PHEVRAS | E85: 25 | F85: 0.315 | G85: 7.875 | H85: 22 | I85: 0.315 | J85: 6.93 | L85: 核减3辆，原因为：重复申报,需进一步核实后予以清算
D86: BH7201PHEVRAS | E86: 10 | F86: 0.34 | G86: 3.4 | H86: 1 | I86: 0.34 | J86: 0.34 | L86: 核减9辆，原因为：需进一步核实后予以清算
D87: BH7000BEVCAA | E87: 10 | F87: 1.4175 | G87: 14.175 | H87: 10 | I87: 1.4175 | J87: 14.175
D88: BH7000BEVCAA | E88: 17 | F88: 1.62 | G88: 27.54 | H88: 17 | I88: 1.62 | J88: 27.54
D89: BH7000BEVSCA | E89: 1 | F89: 1.4175 | G89: 1.4175 | H89: 1 | I89: 1.4175 | J89: 1.4175
D90: BH7000BEVSCA | E90: 10 | F90: 1.62 | G90: 16.2 | H90: 10 | I90: 1.62 | J90: 16.2
D91: BH7160PHEVCBAS | E91: 4 | F91: 0.63 | G91: 2.52 | H91: 4 | I91: 0.63 | J91: 2.52
D92: BH7160PHEVCBAS | E92: 1 | F92: 0.68 | G92: 0.68 | H92: 1 | I92: 0.68 | J92: 0.68
D93: BH7200PHEVRAS | E93: 1 | F93: 0.315 | G93: 0.315 | H93: 1 | I93: 0.315 | J93: 0.315
D94: BH7200PHEVRAS | E94: 1 | F94: 0.34 | G94: 0.34 | H94: 1 | I94: 0.34 | J94: 0.34
D95: BH7201PHEVRAS | E95: 1 | F95: 0.315 | G95: 0.315 | H95: 1 | I95: 0.315 | J95: 0.315
B96: 6 | C96: 北京新能源汽车股份有限公司 | D96: 小计 | E96: =SUM(E97:E126) -> 731 | G96: =SUM(G97:G126) -> 778.4844 | H96: =SUM(H97:H126) -> 165 | J96: =SUM(J97:J126) -> 214.2488 | K96: =ROUND(J96,0) -> 214 | M96: 0 | N96: =M96 -> 0 | O96: =K96-N96 -> 214
D97: BJ7000C5EB-BEV | E97: 92 | F97: 0.6552 | G97: =E97*F97 -> 60.2784 | H97: 0 | I97: 0 | J97: =H97*I97 -> 0 | L97: 核减92辆，原因为：车辆注册登记信息有误,现场核查不通过
D98: BJ7000C5EB-BEV | E98: 5 | F98: 0.8164 | G98: 4.082 | H98: 0 | I98: 0 | J98: 0 | L98: 核减5辆，原因为：现场核查不通过
D99: BJ7000C5ED-BEV | E99: 1 | F99: 0.6552 | G99: 0.6552 | H99: 0 | I99: 0 | J99: 0 | L99: 核减1辆，原因为：现场核查不通过
D100: BJ7000C5ED-BEV | E100: 12 | F100: 0.8164 | G100: 9.7968 | H100: 0 | I100: 0 | J100: 0 | L100: 核减12辆，原因为：现场核查不通过
D101: BJ7000CTD-BEV | E101: 211 | F101: 1.134 | G101: 239.274 | H101: 0 | I101: 0 | J101: 0 | L101: 核减211辆，原因为：现场核查不通过
D102: BJ7000CTD-BEV | E102: 26 | F102: 1.4175 | G102: 36.855 | H102: 0 | I102: 0 | J102: 0 | L102: 核减26辆，原因为：现场核查不通过
D103: BJ7000USD1-BEV | E103: 10 | F103: 1.26 | G103: 12.6 | H103: 0 | I103: 0 | J103: 0 | L103: 核减10辆，原因为：现场核查不通过
D104: BJ7000USD2-BEV | E104: 1 | F104: 1.134 | G104: 1.134 | H104: 0 | I104: 0 | J104: 0 | L104: 核减1辆，原因为：现场核查不通过
D105: BJ7000USD2-BEV | E105: 2 | F105: 1.4175 | G105: 2.835 | H105: 0 | I105: 0 | J105: 0 | L105: 核减2辆，原因为：不符合行驶里程数要求,现场核查不通过
D106: BJ7000USD-BEV | E106: 58 | F106: 1.134 | G106: 65.772 | H106: 0 | I106: 0 | J106: 0 | L106: 核减58辆，原因为：车辆注册登记信息有误,现场核查不通过
D107: BJ7000USD-BEV | E107: 9 | F107: 1.4175 | G107: 12.7575 | H107: 0 | I107: 0 | J107: 0 | L107: 核减9辆，原因为：现场核查不通过
D108: BJ7000USD-BEV | E108: 1 | F108: 1.62 | G108: 1.62 | H108: 0 | I108: 0 | J108: 0 | L108: 核减1辆，原因为：现场核查不通过
D109: BJ7001BPHD-BEV | E109: 11 | F109: 0.7711 | G109: 8.4821 | H109: 0 | I109: 0 | J109: 0 | L109: 核减11辆，原因为：现场核查不通过
D110: BJ7001BPHD-BEV | E110: 6 | F110: 1.1016 | G110: 6.6096 | H110: 0 | I110: 0 | J110: 0 | L110: 核减6辆，原因为：现场核查不通过
D111: BJ7001BPHF-BEV | E111: 50 | F111: 0.6552 | G111: 32.76 | H111: 0 | I111: 0 | J111: 0 | L111: 核减50辆，原因为：车辆注册登记信息有误,现场核查不通过
D112: BJ7001BPHF-BEV | E112: 61 | F112: 0.936 | G112: 57.096 | H112: 0 | I112: 0 | J112: 0 | L112: 核减61辆，原因为：现场核查不通过
D113: BJ7001BPHH-BEV | E113: 6 | F113: 1.17 | G113: 7.02 | H113: 0 | I113: 0 | J113: 0 | L113: 核减6辆，原因为：车辆注册登记信息有误,现场核查不通过
D114: BJ7000C5EB-BEV | E114: 1 | F114: 0.8165 | G114: 0.8165 | H114: 1 | I114: 0.8165 | J114: 0.8165
D115: BJ7000C5EB-BEV | E115: 2 | F115: 0.936 | G115: 1.872 | H115: 2 | I115: 0.936 | J115: 1.872
D116: BJ7000CTD-BEV | E116: 13 | F116: 1.4175 | G116: 18.4275 | H116: 13 | I116: 1.4175 | J116: 18.4275
D117: BJ7000CTD-BEV | E117: 9 | F117: 1.62 | G117: 14.58 | H117: 9 | I117: 1.62 | J117: 14.58
D118: BJ7000USD1-BEV | E118: 1 | F118: 1.575 | G118: 1.575 | H118: 1 | I118: 1.575 | J118: 1.575
D119: BJ7000USD1-BEV | E119: 37 | F119: 1.8 | G119: 66.6 | H119: 37 | I119: 1.8 | J119: 66.6
D120: BJ7000USD1-BEV | E120: 1 | F120: 1.8 | G120: 1.8 | H120: 0 | I120: 0 | J120: 0 | L120: 核减1辆，原因为：车辆注册登记信息有误
D121: BJ7000USD2-BEV | E121: 8 | F121: 1.62 | G121: 12.96 | H121: 8 | I121: 1.62 | J121: 12.96
D122: BJ7000USD-BEV | E122: 6 | F122: 1.4175 | G122: 8.505 | H122: 6 | I122: 1.4175 | J122: 8.505
D123: BJ7000USD-BEV | E123: 4 | F123: 1.62 | G123: 6.48 | H123: 4 | I123: 1.62 | J123: 6.48
D124: BJ7001BPHD-BEV | E124: 23 | F124: 1.1016 | G124: 25.3368 | H124: 23 | I124: 1.1016 | J124: 25.3368
D125: BJ7001BPHF-BEV | E125: 61 | F125: 0.936 | G125: 57.096 | H125: 61 | I125: 0.936 | J125: 57.096
D126: BJ7001BPHF-BEV | E126: 3 | F126: 0.936 | G126: 2.808 | H126: 0 | I126: 0 | J126: 0 | L126: 核减3辆，原因为：车辆注册登记信息有误
B127: 7 | C127: 北汽福田汽车股份有限公司 | D127: 小计 | E127: =SUM(E128:E179) -> 1018 | G127: =SUM(G128:G179) -> 3719.4539 | H127: =SUM(H128:H179) -> 799 | J127: =SUM(J128:J179) -> 3032.235 | K127: =ROUND(J127,0) -> 3032 | M127: 5773 | N127: =K127 -> 3032 | O127: =K127-N127 -> 0
D128: BJ1045EVJA10 | E128: 1 | F128: 2.0447 | G128: =E128*F128 -> 2.0447 | H128: 1 | I128: 2.0447 | J128: =H128*I128 -> 2.0447
D129: BJ1045EVJA9 | E129: 11 | F129: 2.6384 | G129: 29.0224 | H129: 2 | I129: 2.6384 | J129: 5.2768 | L129: 核减9辆，原因为：不符合行驶里程数要求
D130: BJ1045EVJA9 | E130: 5 | F130: 3.298 | G130: 16.49 | H130: 4 | I130: 3.298 | J130: 13.192 | L130: 核减1辆，原因为：不符合行驶里程数要求
D131: BJ3319EVPA1 | E131: 19 | F131: 4 | G131: 76 | H131: 8 | I131: 4 | J131: 32 | L131: 核减11辆，原因为：不符合行驶里程数要求
D132: BJ4259EVPA1 | E132: 94 | F132: 4 | G132: 376 | H132: 47 | I132: 4 | J132: 188 | L132: 核减47辆，原因为：不符合行驶里程数要求,整备质量与推荐目录不符（填报批次）,车辆注册登记信息有误
D133: BJ5039XXYEV6 | E133: 56 | F133: 1.2657 | G133: 70.8792 | H133: 39 | I133: 1.2657 | J133: 49.3623 | L133: 核减17辆，原因为：不符合行驶里程数要求
D134: BJ5039XXYEV6 | E134: 61 | F134: 1.5822 | G134: 96.5142 | H134: 50 | I134: 1.5822 | J134: 79.11 | L134: 核减11辆，原因为：不符合行驶里程数要求,车辆注册登记信息有误
D135: BJ5044TYHEV-H1 | E135: 1 | F135: 2.1054 | G135: 2.1054 | H135: 1 | I135: 2.1054 | J135: 2.1054
D136: BJ5045CCYEV3 | E136: 2 | F136: 3.298 | G136: 6.596 | H136: 1 | I136: 3.298 | J136: 3.298 | L136: 核减1辆，原因为：不符合行驶里程数要求
D137: BJ5045CCYEV4 | E137: 7 | F137: 3.298 | G137: 23.086 | H137: 7 | I137: 3.298 | J137: 23.086
D138: BJ5045XCCEV3 | E138: 7 | F138: 3.298 | G138: 23.086 | H138: 0 | I138: 0 | J138: 0 | L138: 核减7辆，原因为：不符合行驶里程数要求
D139: BJ5045XXYEV10 | E139: 28 | F139: 2.0447 | G139: 57.2516 | H139: 15 | I139: 2.0447 | J139: 30.6705 | L139: 核减13辆，原因为：不符合行驶里程数要求
D140: BJ5045XXYEV10 | E140: 3 | F140: 2.5559 | G140: 7.6677 | H140: 0 | I140: 0 | J140: 0 | L140: 核减3辆，原因为：不符合行驶里程数要求
D141: BJ5045XXYEV8 | E141: 87 | F141: 2.0447 | G141: 177.8889 | H141: 77 | I141: 2.0447 | J141: 157.4419 | L141: 核减10辆，原因为：不符合行驶里程数要求
D142: BJ5045XXYEV8 | E142: 164 | F142: 2.5559 | G142: 419.1676 | H142: 120 | I142: 2.5559 | J142: 306.708 | L142: 核减44辆，原因为：不符合行驶里程数要求,车辆注册登记信息有误
D143: BJ5045XXYEV9 | E143: 10 | F143: 2.6384 | G143: 26.384 | H143: 5 | I143: 2.6384 | J143: 13.192 | L143: 核减5辆，原因为：不符合行驶里程数要求
D144: BJ5045XXYEV9 | E144: 14 | F144: 3.298 | G144: 46.172 | H144: 13 | I144: 3.298 | J144: 42.874 | L144: 核减1辆，原因为：不符合行驶里程数要求
D145: BJ5045XXYEVC | E145: 5 | F145: 2.6384 | G145: 13.192 | H145: 3 | I145: 2.6384 | J145: 7.9152 | L145: 核减2辆，原因为：不符合行驶里程数要求
D146: BJ5045XXYEVC | E146: 28 | F146: 3.298 | G146: 92.344 | H146: 27 | I146: 3.298 | J146: 89.046 | L146: 核减1辆，原因为：车辆注册登记信息有误
D147: BJ5045XXYEVJ | E147: 14 | F147: 2.6384 | G147: 36.9376 | H147: 13 | I147: 2.6384 | J147: 34.2992 | L147: 核减1辆，原因为：不符合行驶里程数要求
D148: BJ5045XXYEVJ | E148: 22 | F148: 3.298 | G148: 72.556 | H148: 21 | I148: 3.298 | J148: 69.258 | L148: 核减1辆，原因为：不符合行驶里程数要求
D149: BJ5045XXYEVK | E149: 12 | F149: 3.1585 | G149: 37.902 | H149: 10 | I149: 3.1585 | J149: 31.585 | L149: 核减2辆，原因为：不符合行驶里程数要求
D150: BJ5045ZKXEV10 | E150: 2 | F150: 2.5559 | G150: 5.1118 | H150: 2 | I150: 2.5559 | J150: 5.1118
D151: BJ5048XXYEV3 | E151: 11 | F151: 2.0139 | G151: 22.1529 | H151: 8 | I151: 2.0139 | J151: 16.1112 | L151: 核减3辆，原因为：不符合行驶里程数要求
D152: BJ5048XXYEV3 | E152: 11 | F152: 2.5174 | G152: 27.6914 | H152: 10 | I152: 2.5174 | J152: 25.174 | L152: 核减1辆，原因为：不符合行驶里程数要求
D153: BJ5062XTYEV-H1 | E153: 1 | F153: 3.2985 | G153: 3.2985 | H153: 0 | I153: 0 | J153: 0 | L153: 核减1辆，原因为：车辆注册登记信息有误
D154: BJ5065XXYEV1 | E154: 1 | F154: 2.6384 | G154: 2.6384 | H154: 0 | I154: 0 | J154: 0 | L154: 核减1辆，原因为：不符合行驶里程数要求
D155: BJ5065XXYEV1 | E155: 16 | F155: 3.298 | G155: 52.768 | H155: 4 | I155: 3.298 | J155: 13.192 | L155: 核减12辆，原因为：不符合行驶里程数要求,需进一步核实后予以清算
D156: BJ5122TXSEV-H1 | E156: 1 | F156: 4.95 | G156: 4.95 | H156: 1 | I156: 4.95 | J156: 4.95
D157: BJ6105CHEVCA-15 | E157: 20 | F157: 2.1794 | G157: 43.588 | H157: 20 | I157: 2.1794 | J157: 43.588
D158: BJ6105EVCA-46 | E158: 1 | F158: 8.1 | G158: 8.1 | H158: 1 | I158: 8.1 | J158: 8.1
D159: BJ6105EVCA-47 | E159: 1 | F159: 8.1 | G159: 8.1 | H159: 1 | I159: 8.1 | J159: 8.1
D160: BJ6105EVCA-49 | E160: 52 | F160: 8.1 | G160: =E160*F160 -> 421.2 | H160: 49 | I160: 8.1 | J160: =H160*I160 -> 396.9 | L160: 核减3辆，原因为：不符合行驶里程数要求
D161: BJ6105EVCA-51 | E161: 31 | F161: 8.1 | G161: 251.1 | H161: 31 | I161: 8.1 | J161: 251.1
D162: BJ6105EVCA-52 | E162: 2 | F162: 8.1 | G162: 16.2 | H162: 2 | I162: 8.1 | J162: 16.2
D163: BJ6105EVCA-53 | E163: 4 | F163: 8.1 | G163: 32.4 | H163: 4 | I163: 8.1 | J163: 32.4
D164: BJ6117EVUA-6 | E164: 14 | F164: 8.1 | G164: 113.4 | H164: 14 | I164: 7.2 | J164: 100.8
D165: BJ6117EVUA-6 | E165: 10 | F165: 8.1 | G165: 81 | H165: 5 | I165: 8.1 | J165: 40.5 | L165: 核减5辆，原因为：不符合行驶里程数要求
D166: BJ6123CHEVCA-11 | E166: 6 | F166: 2.1746 | G166: 13.0476 | H166: 5 | I166: 2.1746 | J166: 10.873 | L166: 核减1辆，原因为：不符合行驶里程数要求
D167: BJ6123EVCA-52 | E167: 3 | F167: 7.29 | G167: 21.87 | H167: 3 | I167: 7.29 | J167: 21.87
D168: BJ6126EVUA-2 | E168: 28 | F168: 6.48 | G168: 181.44 | H168: 28 | I168: 6.48 | J168: 181.44
D169: BJ6126EVUA-3 | E169: 9 | F169: 8.1 | G169: 72.9 | H169: 9 | I169: 8.1 | J169: 72.9
D170: BJ6129EVCA | E170: 5 | F170: 7.29 | G170: 36.45 | H170: 5 | I170: 7.29 | J170: 36.45
D171: BJ6650EVCA-7 | E171: 3 | F171: 2.25 | G171: 6.75 | H171: 3 | I171: 2.25 | J171: 6.75
D172: BJ6650EVCA-8 | E172: 1 | F172: 2.25 | G172: 2.25 | H172: 1 | I172: 2.25 | J172: 2.25
D173: BJ6650EVCA-9 | E173: 21 | F173: 2.25 | G173: 47.25 | H173: 21 | I173: 2.25 | J173: 47.25
D174: BJ6805EVCA-30 | E174: 1 | F174: 4.95 | G174: 4.95 | H174: 1 | I174: 4.95 | J174: 4.95
D175: BJ6805EVCA-33 | E175: 14 | F175: 4.95 | G175: 69.3 | H175: 14 | I175: 4.95 | J175: 69.3
D176: BJ6816EVCA | E176: 1 | F176: 4.95 | G176: 4.95 | H176: 1 | I176: 4.95 | J176: 4.95
D177: BJ6851EVCA-30 | E177: 35 | F177: 4.95 | G177: 173.25 | H177: 30 | I177: 4.95 | J177: 148.5 | L177: 核减5辆，原因为：不符合行驶里程数要求
D178: BJ6851EVCA-31 | E178: 50 | F178: 4.95 | G178: 247.5 | H178: 50 | I178: 4.95 | J178: 247.5
D179: BJ6851EVCA-36 | E179: 12 | F179: 2.88 | G179: 34.56 | H179: 12 | I179: 2.88 | J179: 34.56
A180: 天津市 | B180: 合计 | E180: =SUM(E181:E193)/2 -> 450 | G180: =SUM(G181:G193)/2 -> 925.434 | H180: =SUM(H181:H193)/2 -> 322 | J180: =SUM(J181:J193)/2 -> 796.512 | K180: =SUM(K181:K185) -> 797 | M180: =SUM(M181:M185) -> 0 | N180: =SUM(N181:N185) -> 0 | O180: =SUM(O181:O185) -> 797
B181: 1 | C181: 天津比亚迪汽车有限公司 | D181: 小计 | E181: =SUM(E182) -> 67 | G181: =SUM(G182) -> 542.7 | H181: =SUM(H182) -> 65 | J181: =SUM(J182) -> 526.5 | K181: =ROUND(J181,0) -> 527 | M181: 0 | N181: =M181 -> 0 | O181: =K181-N181 -> 527
D182: TJK6100GCLEV | E182: 67 | F182: 8.1 | G182: =E182*F182 -> 542.7 | H182: 65 | I182: 8.1 | J182: =H182*I182 -> 526.5 | L182: 核减2辆，原因为：车辆注册登记信息有误,现场核查不通过
B183: 2 | C183: 天津广通汽车有限公司 | D183: 小计 | E183: =SUM(E184) -> 64 | G183: =SUM(G184) -> 129.6 | H183: =SUM(H184) -> 64 | J183: =SUM(J184) -> 129.6 | K183: =ROUND(J183,0) -> 130 | M183: 0 | N183: =M183 -> 0 | O183: =K183-N183 -> 130
D184: TJR6680BEVB1 | E184: 64 | F184: 2.025 | G184: =E184*F184 -> 129.6 | H184: 64 | I184: 2.025 | J184: =H184*I184 -> 129.6
B185: 3 | C185: 一汽丰田汽车有限公司 | D185: 小计 | E185: =SUM(E186:E193) -> 319 | G185: =SUM(G186:G193) -> 253.134 | H185: =SUM(H186:H193) -> 193 | J185: =SUM(J186:J193) -> 140.412 | K185: =ROUND(J185,0) -> 140 | M185: 0 | N185: =M185 -> 0 | O185: =K185-N185 -> 140
D186: TV7001BEV | E186: 42 | F186: 1.44 | G186: =E186*F186 -> 60.48 | H186: 3 | I186: 1.44 | J186: =H186*I186 -> 4.32 | L186: 核减39辆，原因为：重复申报,未按有关要求上传车辆运行数据,车辆注册登记信息有误,需进一步核实后予以清算
D187: TV7186HEV6 | E187: 89 | F187: 0.476 | G187: 42.364 | H187: 76 | I187: 0.476 | J187: 36.176 | L187: 核减13辆，原因为：重复申报,未按有关要求上传车辆运行数据,车辆注册登记信息有误
D188: TV7186HEV6 | E188: 14 | F188: 0.63 | G188: 8.82 | H188: 14 | I188: 0.63 | J188: 8.82
D189: TV7186HEV6 | E189: 3 | F189: 0.63 | G189: 1.89 | H189: 1 | I189: 0.476 | J189: 0.476 | L189: 核减2辆，原因为：不符合行驶里程数要求,车辆注册登记信息有误
D190: TV7186HEV6 | E190: 76 | F190: 0.68 | G190: 51.68 | H190: 4 | I190: 0.68 | J190: 2.72 | L190: 核减72辆，原因为：重复申报,未按有关要求上传车辆运行数据,车辆注册登记信息有误,需进一步核实后予以清算
D191: TV7001BEV | E191: 32 | F191: 1.44 | G191: 46.08 | H191: 32 | I191: 1.44 | J191: 46.08
D192: TV7186HEV6 | E192: 5 | F192: 0.476 | G192: 2.38 | H192: 5 | I192: 0.476 | J192: 2.38
D193: TV7186HEV6 | E193: 58 | F193: 0.68 | G193: 39.44 | H193: 58 | I193: 0.68 | J193: 39.44
A194: 河北省 | B194: 合计 | E194: =SUM(E195:E316)/2 -> 7750 | G194: =SUM(G195:G316)/2 -> 9240.2455 | H194: =SUM(H195:H316)/2 -> 7550 | J194: =SUM(J195:J316)/2 -> 8992.8946 | K194: =SUM(K195:K309) -> 8993 | M194: =SUM(M195:M309) -> 6412 | N194: =SUM(N195:N309) -> 5246 | O194: =SUM(O195:O309) -> 3747
B195: 1 | C195: 长城汽车股份有限公司 | D195: 小计 | E195: =SUM(E196:E264) -> 2886 | G195: =SUM(G196:G264) -> 3994.0948 | H195: =SUM(H196:H264) -> 2799 | J195: =SUM(J196:J264) -> 3871.24 | K195: =ROUND(J195,0) -> 3871 | M195: 5037 | N195: =K195 -> 3871 | O195: =K195-N195 -> 0
D196: CC1032PA03BEV | E196: 15 | F196: 1.44 | G196: =E196*F196 -> 21.6 | H196: 15 | I196: 1.44 | J196: =H196*I196 -> 21.6
D197: CC5032XXYPA03BEV | E197: 18 | F197: 1.44 | G197: 25.92 | H197: 18 | I197: 1.44 | J197: 25.92
D198: CC6483AD23BPHEV | E198: 5 | F198: 0.476 | G198: 2.38 | H198: 5 | I198: 0.476 | J198: 2.38
D199: CC7000BJ01BBEV | E199: 16 | F199: 1.26 | G199: 20.16 | H199: 16 | I199: 1.26 | J199: 20.16
D200: CC7000BJ01BBEV | E200: 6 | F200: 1.8 | G200: 10.8 | H200: 0 | I200: 0 | J200: 0 | L200: 核减6辆，原因为：车辆注册登记信息有误
... 3062 more rows
